bitfinex-derivatives/quotes_BNBF0:USTF0_20250510
["timestamp","ask_amount","ask_price","bid_price","bid_amount"]
[1746853946150,0.24983883,659.51,657.53,0.95705145]
[1746853946447,0.26425596,659.57,657.54,0.95705145]
[1746853946748,0.24981687,659.56,657.55,0.95705145]
[1746853946948,0.24981687,659.56,657.56,0.95705145]
[1746853947143,0.24981687,659.55,657.57,0.95705145]
[1746853947343,0.24981687,659.55,657.58,0.95705145]
[1746853947543,0.24981687,659.54,657.51,0.435]
[1746853947743,0.24981687,659.54,657.52,0.95708181]
[1746853947943,0.24981687,659.53,657.53,0.95708181]
[1746853948149,0.24981687,659.53,657.54,0.95708181]
[1746853948447,1.93745811,659.98,657.51,0.435]
[1746853948448,0.24981687,659.52,657.55,0.95708181]
[1746853948649,1.93745811,659.98,657.56,0.95708181]
[1746853948849,0.26425998,659.52,657.57,0.95708181]
[1746853949043,0.26425998,659.52,657.58,0.95708181]
[1746853949247,0.26425998,659.52,657.51,0.435]
[1746853949444,0.26425998,659.52,657.52,0.95714045]
[1746853949650,0.24981696,659.51,657.53,0.95714045]
[1746853949845,0.24981696,659.51,657.54,0.95714045]
[1746853950051,0.24981696,659.5,657.55,0.95714045]
[1746853950247,0.24981696,659.5,657.56,0.95714045]
[1746853950445,0.24981696,659.49,657.57,0.95714045]
[1746853950750,0.24981696,659.48,657.51,0.26427402]
[1746853950946,0.24981696,659.48,657.52,0.95718843]
[1746853951150,0.24981696,659.47,657.53,0.95718843]
[1746853951351,0.24981696,659.47,657.54,0.95718843]
[1746853951650,0.24981696,659.46,657.55,0.95718843]
[1746853951850,0.24981696,659.46,657.56,0.95718843]
[1746853952049,0.24981696,659.45,657.57,0.95718843]
[1746853952252,0.24981696,659.45,657.51,0.26427402]
[1746853952448,0.24981696,659.45,657.52,0.95727278]
[1746853952645,0.24981696,659.45,657.53,0.95727278]
[1746853952850,0.24981696,659.45,657.54,0.95727278]
[1746853953150,0.26425998,659.52,657.55,0.95727278]
[1746853953151,0.24981696,659.44,657.55,0.95727278]
[1746853953349,0.24981696,659.44,657.56,0.95727278]
[1746853953550,0.24981696,659.43,657.57,0.95727278]
[1746853953850,0.24981696,659.42,657.54,0.504]
[1746853954050,0.26425998,659.52,657.54,0.504]
[1746853954247,1.93745811,659.88,657.54,0.504]
[1746853954449,0.24979963,659.51,657.54,0.504]
[1746853954649,0.24979963,659.5,657.54,0.504]
[1746853955054,1.93745811,659.39,657.54,0.504]
[1746853955350,0.24979963,659.38,657.54,0.504]
[1746853956054,0.24979963,659.38,657.55,0.95751431]
[1746853956254,0.24979963,659.38,657.54,0.504]
[1746853956455,0.24979963,659.38,657.55,0.95755249]
[1746853956655,0.24979963,659.38,657.54,0.504]
[1746853957055,0.24979963,659.38,657.55,0.95755556]
[1746853957252,0.24979963,659.37,657.54,0.504]
[1746853957452,0.24979963,659.37,657.55,0.95763373]
[1746853957656,0.26430915,659.36,657.54,0.504]
[1746853957855,0.26430915,659.36,657.55,0.95763373]
[1746853958156,0.24979963,659.35,657.54,0.504]
[1746853958352,0.24979963,659.35,657.55,0.95772162]
[1746853958551,0.24979963,659.35,657.54,0.504]
[1746853958755,0.24979963,659.35,657.55,0.95772027]
[1746853958958,0.24979963,659.35,657.54,0.504]
[1746853959153,0.24979963,659.35,657.55,0.95771893]
[1746853959453,0.24979963,659.35,657.54,0.504]
[1746853959753,0.24979963,659.35,657.55,0.95826851]
[1746853959958,0.24979963,659.34,657.56,0.95826851]
[1746853960259,0.24979963,659.34,657.57,0.95826851]
[1746853960455,0.24979963,659.33,657.58,0.95826851]
[1746853960661,0.24979963,659.33,657.59,0.95826851]
[1746853960958,0.24979963,659.33,657.6,0.95826851]
[1746853961159,0.24979963,659.32,657.61,0.95826851]
[1746853961355,0.24979963,659.32,657.62,0.95826851]
[1746853961659,0.24979963,659.31,657.63,0.95826851]
[1746853961958,0.24979963,659.3,657.64,0.95826851]
[1746853962255,0.24979963,659.29,657.65,1.52126851]
[1746853962459,0.24979963,659.28,657.66,0.95826851]
[1746853962860,0.24979963,659.27,657.66,0.95826851]
[1746853963159,0.24979963,659.26,657.66,0.95826851]
[1746853963360,0.24979963,659.25,657.66,0.95826851]
[1746853963861,0.51405359,659.24,657.66,0.95826851]
[1746853964359,0.24979963,659.23,657.66,0.95826851]
[1746853964660,0.24979963,659.23,657.67,0.95826851]
[1746853964862,0.24979963,659.22,657.68,0.95826851]
[1746853965059,0.24979963,659.22,657.65,0.563]
[1746853965060,0.24979963,659.23,657.69,0.95826851]
[1746853965260,0.24979963,659.23,657.7,0.95826851]
[1746853965460,0.24979963,659.23,657.71,0.95826851]
[1746853965760,0.24979963,659.23,657.72,0.95826851]
[1746853965957,0.24979963,659.23,657.73,0.95826851]
[1746853966161,0.24979963,659.23,657.74,0.95826851]
[1746853966360,0.24979963,659.23,657.75,0.95826851]
[1746853966561,0.24979963,659.23,657.76,0.95826851]
[1746853966757,0.26421082,659.22,657.77,0.95826851]
[1746853966958,0.26421082,659.22,657.78,0.95826851]
[1746853967263,0.24979963,659.21,657.79,0.95826851]
[1746853967463,0.24979963,659.21,657.8,0.95826851]
[1746853967657,0.24979963,659.21,657.81,0.95826851]
[1746853967859,0.24979963,659.21,657.82,0.95815422]
[1746853968056,0.24979963,659.21,657.83,0.95815422]
[1746853968358,0.24979963,659.21,657.84,0.95815422]
[1746853968655,0.24979963,659.21,657.66,0.26421082]
[1746853968856,0.24979963,659.21,657.67,0.95834342]
[1746853969160,0.24979963,659.21,657.68,0.95834342]
[1746853969362,0.24979963,659.21,657.69,0.95834342]
[1746853969558,0.24979963,659.21,657.7,0.95834342]
[1746853969764,0.24979963,659.21,657.71,0.95834342]
[1746853969963,0.24979963,659.21,657.72,0.95834342]
[1746853970161,0.24979963,659.21,657.73,0.95834342]
[1746853970362,0.24979963,659.21,657.74,0.95834342]
[1746853970559,0.24979963,659.21,657.66,0.26421082]
[1746853970761,0.24979963,659.21,657.67,0.95842289]
[1746853970965,0.24979963,659.21,657.68,0.95842289]
[1746853971167,0.24979963,659.21,657.66,0.26421082]
[1746853971168,0.24979963,659.21,657.69,0.95842289]
[1746853971363,0.24979963,659.21,657.7,0.95842289]
[1746853971569,0.24979963,659.21,657.71,0.95842289]
[1746853971766,0.24979963,659.21,657.72,0.95842289]
[1746853971972,0.26421082,659.22,657.74,0.30407151]
[1746853972167,1.93745811,660.14,657.74,0.30407151]
[1746853972371,1.93745811,660.89,657.74,0.30407151]
[1746853972372,1.93745811,659.89,657.74,0.30407151]
[1746853972873,0.25001607,659.88,657.74,0.30407151]
[1746853973074,0.25001607,659.88,657.75,0.9587485]
[1746853973400,0.25001607,659.87,657.74,0.30407151]
[1746853973575,0.25001607,659.87,657.75,0.95887809]
[1746853973774,0.25001607,659.86,657.74,0.30407151]
[1746853974176,0.25001607,659.86,657.75,0.95887905]
[1746853974474,0.25001607,659.85,657.76,0.95904966]
[1746853974675,0.25001607,659.85,657.77,0.95904966]
[1746853974877,0.25001607,659.84,657.74,0.30407151]
[1746853975071,0.25001607,659.84,657.75,0.95903043]
[1746853975275,0.25001607,659.83,657.76,0.95903043]
[1746853975473,0.25001607,659.82,657.77,0.95903043]
[1746853975678,0.51423291,659.82,657.74,0.30407151]
[1746853975982,0.25001607,659.81,657.75,0.95919965]
[1746853976175,0.25001607,659.81,657.76,0.95919965]
[1746853976375,0.25001607,659.81,657.77,0.95919965]
[1746853976579,0.25001607,659.8,657.78,0.95919965]
[1746853976781,0.25001607,659.79,657.79,0.95919965]
[1746853977077,0.25001607,659.78,657.74,0.30407151]
[1746853977275,0.25001607,659.78,657.75,0.959338]
[1746853977579,0.25001607,659.77,657.85,0.30402067]
[1746853977980,0.25001607,659.76,657.85,0.30402067]
[1746853978382,0.25001607,659.75,657.85,0.30402067]
[1746853978583,0.51424394,659.75,657.85,0.30402067]
[1746853978783,0.25001607,659.74,657.85,0.30402067]
[1746853978981,1.93745811,659.68,657.85,0.30402067]
[1746853979583,0.25001607,659.67,657.85,0.30402067]
[1746853980082,0.25001607,659.66,657.85,0.30402067]
[1746853980482,0.25001607,659.65,657.85,0.30402067]
[1746853980783,0.25001607,659.64,657.85,0.30402067]
[1746853981182,0.25001607,659.63,657.85,0.30402067]
[1746853981483,0.25001607,659.62,657.85,0.30402067]
[1746853981680,0.514263,659.62,657.85,0.30402067]
[1746853981881,0.25001607,659.61,657.85,0.30402067]
[1746853982277,0.25001607,659.6,657.85,0.30402067]
[1746853982583,1.93745811,659.51,657.85,0.30402067]
[1746853982883,0.25001607,659.5,657.85,0.30402067]
[1746853983183,0.25001607,659.49,657.85,0.30402067]
[1746853983885,0.25001607,659.48,657.85,0.30402067]
[1746853984184,0.25001607,659.47,657.85,0.30402067]
[1746853984486,0.25001607,659.47,657.86,0.95912776]
[1746853984686,0.51425799,659.46,657.87,0.95912776]
[1746853984885,0.25001607,659.45,657.85,0.30402067]
[1746853985085,0.25001607,659.45,657.86,0.95910241]
[1746853985287,0.25001607,659.45,657.87,0.95910241]
[1746853985487,0.25001607,659.44,657.88,0.95911221]
[1746853985686,0.25001607,659.43,657.85,0.30402067]
[1746853985987,0.25001607,659.43,657.86,0.95904834]
[1746853986181,0.25001607,659.42,657.87,0.95904834]
[1746853986482,0.25001607,659.41,657.88,1.26305514]
[1746853986684,0.25001607,659.41,657.9,0.30399756]
[1746853986887,0.26424192,659.46,657.9,0.30399756]
[1746853986888,0.25001607,659.45,657.91,0.95904834]
[1746853987187,0.25001607,659.45,657.93,0.3039837]
[1746853987486,0.25001607,659.44,657.93,0.3039837]
[1746853987686,0.51420383,659.44,657.93,0.3039837]
[1746853987889,0.25001607,659.43,657.93,0.3039837]
[1746853988487,0.25001607,659.42,657.93,0.3039837]
[1746853988789,0.25001607,659.43,657.93,0.3039837]
[1746853989187,0.25001607,659.42,657.93,0.3039837]
[1746853989387,0.25001607,659.41,657.93,0.3039837]
[1746853989781,0.25001607,659.43,657.93,0.3039837]
[1746853990184,0.25001607,659.42,657.93,0.3039837]
[1746853990487,0.25001607,659.41,657.93,0.3039837]
[1746853990684,0.51421787,659.41,657.93,0.3039837]
[1746853990889,0.25001607,659.4,657.93,0.3039837]
[1746853991191,0.25001607,659.39,657.93,0.3039837]
[1746853991490,0.25001607,659.38,657.93,0.3039837]
[1746853991890,0.25001607,659.37,657.93,0.3039837]
[1746853992189,0.25001607,659.36,657.93,0.3039837]
[1746853992590,0.25001607,659.35,657.93,0.8839837]
[1746853992890,0.25001607,659.34,657.93,0.8839837]
[1746853993194,0.25001607,659.33,657.93,0.8839837]
[1746853993490,0.25001607,659.32,657.93,0.8839837]
[1746853993691,0.51420884,659.32,657.93,0.8839837]
[1746853993892,0.25001607,659.31,657.93,0.8839837]
[1746853994393,0.25001607,659.3,657.93,0.8839837]
[1746853994691,0.25001607,659.29,657.93,0.8839837]
[1746853994991,0.25001607,659.28,657.93,0.8839837]
[1746853995592,0.25001607,659.31,657.93,0.8839837]
[1746853996090,0.25001607,659.3,657.93,0.8839837]
[1746853996491,0.25001607,659.29,657.93,0.8839837]
[1746853996684,0.25001607,659.28,657.93,0.8839837]
[1746853997085,0.25001607,659.27,657.93,0.8839837]
[1746853997390,0.25001607,659.58,657.93,0.8839837]
[1746853997591,0.2642018,659.26,657.93,0.8839837]
[1746853997789,0.25001607,659.57,657.93,0.8839837]
[1746853997989,0.25001607,659.57,657.94,0.30390195]
[1746853998191,0.25001607,659.56,657.96,0.30396984]
[1746853998492,0.25001607,659.56,657.97,0.30390195]
[1746853998889,0.25001607,659.55,657.98,0.30390195]
[1746853999191,0.25001607,659.54,657.98,0.30390195]
[1746853999386,0.25001607,659.53,657.96,0.30396984]
[1746853999692,0.25001607,659.52,657.96,0.30396984]
[1746853999987,0.25001607,659.51,657.96,0.30396984]
[1746854000392,0.25001607,659.5,657.96,0.30396984]
[1746854000693,1.93745811,659.37,657.96,0.30396984]
[1746854001287,0.25001607,659.36,657.96,0.30396984]
[1746854001593,0.25001607,659.35,657.96,0.30396984]
[1746854002094,0.25001607,659.34,657.96,0.30396984]
[1746854002295,0.25001607,659.33,657.96,0.30396984]
[1746854002590,0.51429812,659.33,657.96,0.30396984]
[1746854002896,0.25001607,659.32,657.96,0.30396984]
[1746854003196,0.25001607,659.31,657.96,0.30396984]
[1746854003397,1.93745811,659.26,657.96,0.30396984]
[1746854003794,0.25001607,659.25,657.96,0.30396984]
[1746854004097,0.25001607,659.24,657.96,0.30396984]
[1746854004497,0.25001607,659.23,657.96,0.30396984]
[1746854004996,0.25001607,659.22,657.96,0.30396984]
[1746854005392,0.25001607,659.21,657.96,0.30396984]
[1746854005698,0.25001607,659.2,657.96,0.30396984]
[1746854005901,0.25001607,659.2,657.97,0.626]
[1746854006100,0.25001607,659.2,657.98,0.3039606]
[1746854006398,0.25001607,659.19,657.98,0.3039606]
[1746854006697,0.25001607,659.18,657.98,0.3039606]
[1746854006997,0.25001607,659.17,657.98,0.3039606]
[1746854007397,0.25001607,659.16,657.98,0.3039606]
[1746854007797,0.25001607,659.15,657.98,0.3039606]
[1746854008193,0.25001607,659.14,657.98,0.3039606]
[1746854008798,0.26430815,659.13,657.98,0.3039606]
[1746854009099,0.51432422,659.13,657.98,0.3039606]
[1746854009496,0.25001607,659.12,657.98,0.3039606]
[1746854009694,0.25001607,659.11,657.98,0.3039606]
[1746854010394,0.25001607,659.1,657.98,0.3039606]
[1746854010699,0.25001607,659.09,657.98,0.3039606]
[1746854011099,0.25001607,659.08,657.98,0.3039606]
[1746854011299,0.25001607,659.07,657.98,0.3039606]
[1746854011599,0.25001607,659.06,657.98,0.3039606]
[1746854012200,0.25001607,659.05,657.98,0.3039606]
[1746854012895,0.26430313,659.07,657.98,0.3039606]
[1746854012896,0.25001607,659.04,657.98,0.3039606]
[1746854013301,0.25001607,659.03,657.98,0.3039606]
[1746854013599,0.25001607,659.02,657.98,0.3039606]
[1746854013902,0.26430313,659.07,657.98,0.3039606]
[1746854014201,0.24998471,659.06,657.98,0.3039606]
[1746854014500,0.24998471,659.05,657.98,0.3039606]
[1746854014801,0.24998471,659.04,657.98,0.3039606]
[1746854015100,0.24998471,659.03,657.98,0.3039606]
[1746854015501,0.24998471,659.02,657.98,0.3039606]
[1746854016002,0.24998471,659.01,657.98,0.3039606]
[1746854016699,0.24998471,659.0,657.98,0.3039606]
[1746854017002,0.24998471,658.99,657.98,0.3039606]
[1746854017501,0.24998471,658.98,657.98,0.3039606]
[1746854018001,0.24998471,658.97,657.98,0.3039606]
[1746854018411,0.24998471,658.96,657.98,0.3039606]
[1746854018702,0.24998471,658.95,657.98,0.3039606]
[1746854018907,0.24998471,658.94,657.98,0.3039606]
[1746854019101,0.24998471,659.04,657.98,0.3039606]
[1746854019406,0.24998471,659.03,657.98,0.3039606]
[1746854019705,0.24998471,659.02,657.98,0.3039606]
[1746854020007,0.24998471,659.01,657.98,0.3039606]
[1746854020302,0.24998471,659.0,657.98,0.3039606]
[1746854020505,0.24998471,658.99,657.98,0.3039606]
[1746854020904,0.24998471,658.98,657.98,0.3039606]
[1746854021106,0.24998471,658.97,657.98,0.3039606]
[1746854021303,0.2643222,659.0,657.98,0.3039606]
[1746854021506,0.24994247,658.99,657.98,0.3039606]
[1746854021707,0.24994247,658.98,657.98,0.3039606]
[1746854022203,0.24994247,658.97,657.98,0.3039606]
[1746854022406,0.24994247,658.96,657.98,0.3039606]
[1746854022703,0.24994247,658.95,657.98,0.3039606]
[1746854022904,0.24994247,658.94,657.98,0.3039606]
[1746854023207,0.24994247,658.93,657.98,0.3039606]
[1746854023403,0.24994247,659.53,657.98,0.3039606]
[1746854023603,0.26431718,658.93,657.98,0.3039606]
[1746854023802,0.55319331,659.52,657.98,0.3039606]
[1746854024007,0.24994247,658.92,657.98,0.3039606]
[1746854024209,0.24994247,659.5,657.98,0.3039606]
[1746854024507,0.55320711,659.49,657.98,0.3039606]
[1746854024703,0.8175273,659.49,657.98,0.3039606]
[1746854024900,0.55321171,659.48,657.98,0.3039606]
[1746854025301,0.24994247,659.47,657.98,0.3039606]
[1746854025506,0.26432019,659.49,657.98,0.3039606]
[1746854025507,0.5532209,659.46,657.98,0.3039606]
[1746854025908,0.24994247,659.45,657.98,0.3039606]
[1746854026203,0.30328763,659.44,657.98,0.3039606]
[1746854026609,0.26432622,659.43,657.98,0.3039606]
[1746854026809,0.30329683,659.42,657.98,0.3039606]
[1746854027306,1.93745811,659.33,657.98,0.3039606]
[1746854027707,0.24994247,659.32,657.98,0.3039606]
[1746854028108,0.24994247,659.31,657.98,0.3039606]
[1746854029210,1.93745811,659.27,657.98,0.3039606]
[1746854029906,0.24994247,659.26,657.98,0.3039606]
[1746854030209,0.24994247,659.25,657.98,0.3039606]
[1746854030508,0.24994247,659.24,657.98,0.3039606]
[1746854030809,0.24994247,659.23,657.98,0.3039606]
[1746854031110,1.93745811,659.11,657.98,0.3039606]
[1746854031510,0.24994247,659.1,657.98,0.3039606]
[1746854031811,0.24994247,659.09,657.98,0.3039606]
[1746854032203,0.24994247,659.08,657.98,0.3039606]
[1746854033008,0.24994247,659.07,657.98,0.3039606]
[1746854033209,0.24994247,659.06,657.98,0.3039606]
[1746854033609,0.24994247,659.05,657.98,0.3039606]
[1746854033910,0.24994247,659.04,657.98,0.3039606]
[1746854034210,0.24994247,659.03,657.98,0.3039606]
[1746854034511,1.93745811,658.92,657.98,0.3039606]
[1746854034912,0.24994247,658.91,657.98,0.3039606]
[1746854035409,0.24994247,658.9,657.98,0.3039606]
[1746854035610,0.24994247,658.89,657.98,0.3039606]
[1746854035909,1.93745811,658.92,657.98,0.3039606]
[1746854035910,0.24994247,658.88,657.98,0.3039606]
[1746854036705,0.5143219,658.87,657.98,0.3039606]
[1746854036910,0.24994247,658.86,657.98,0.3039606]
[1746854037311,0.24994247,658.85,657.98,0.3039606]
[1746854037606,0.24994247,658.84,657.98,0.3039606]
[1746854038111,0.24994247,658.83,657.98,0.3039606]
[1746854038507,0.24994247,658.82,657.98,0.3039606]
[1746854038911,0.24994247,658.81,657.98,0.3039606]
[1746854039412,0.24994247,658.8,657.98,0.3039606]
[1746854039812,0.24994247,658.79,657.98,0.3039606]
[1746854040207,0.24994247,658.78,657.98,0.3039606]
[1746854040512,0.24994247,658.77,657.98,0.3039606]
[1746854040807,0.24994247,658.81,657.98,0.3039606]
[1746854041113,0.24994247,658.8,657.99,0.511]
[1746854041611,0.26438345,658.79,657.99,0.511]
[1746854041807,0.51432592,658.79,657.99,0.511]
[1746854042408,0.24994247,658.78,657.99,0.511]
[1746854044715,0.24994247,658.78,658.0,0.532]
[1746854047617,0.26437441,658.77,658.0,0.532]
[1746854048117,0.24994247,658.76,658.0,0.532]
[1746854050714,0.24994247,658.75,658.0,0.532]
[1746854051418,0.24994247,658.74,658.0,0.532]
[1746854051813,0.24994247,658.73,658.0,0.532]
[1746854052318,0.24994247,658.72,658.0,0.532]
[1746854052514,0.24994247,658.71,658.0,0.532]
[1746854053018,0.24994247,658.7,658.0,0.532]
[1746854053518,0.24994247,658.69,658.0,0.532]
[1746854053713,0.51438217,658.69,658.0,0.532]
[1746854053914,0.24994247,658.68,658.0,0.532]
[1746854054119,0.24994247,658.67,658.0,0.532]
[1746854054521,0.24994247,658.68,658.0,0.532]
[1746854056617,0.26440956,658.67,658.0,0.532]
[1746854057122,0.24994247,658.66,658.0,0.532]
[1746854059724,0.26434629,658.65,658.0,0.532]
[1746854060122,0.24994247,658.64,658.0,0.532]
[1746854062524,0.24994247,659.15,658.0,0.532]
[1746854062724,0.26436838,658.63,658.0,0.532]
[1746854063024,2.18740058,659.14,658.01,0.628]
[1746854063224,0.24994247,659.13,658.01,0.628]
[1746854063524,0.24994247,659.12,658.01,0.628]
[1746854063724,0.51431186,659.12,658.01,0.628]
[1746854063924,0.24994247,659.11,658.01,0.628]
[1746854064123,0.26436939,659.12,658.01,0.628]
[1746854064424,0.24995112,659.11,658.01,0.628]
[1746854064727,0.26436939,659.12,658.01,0.628]
[1746854065120,0.24995303,659.11,658.01,0.628]
[1746854065722,0.24995303,659.1,658.01,0.628]
[1746854066024,0.24995303,659.09,658.01,0.628]
[1746854066525,0.24995303,659.08,658.01,0.628]
[1746854066724,0.51434853,659.08,658.01,0.628]
[1746854067024,0.24995303,659.07,658.01,0.628]
[1746854067320,1.93745811,658.97,658.01,0.628]
[1746854067925,0.24995303,658.96,658.01,0.628]
[1746854068326,1.93745811,658.97,658.01,0.628]
[1746854068327,0.24995303,658.95,658.01,0.628]
[1746854068625,0.24995303,658.94,658.01,0.628]
[1746854068826,0.24995303,658.93,658.01,0.628]
[1746854069230,0.24995303,658.92,658.01,0.628]
[1746854069723,0.24995303,658.91,658.01,0.628]
[1746854070127,0.24995303,658.9,658.01,0.628]
[1746854070523,0.24995303,658.89,658.01,0.628]
[1746854070926,0.26444472,658.95,658.01,0.628]
[1746854070927,0.24995303,658.88,658.01,0.628]
[1746854071527,0.24995303,658.87,658.01,0.628]
[1746854071726,0.51438168,658.87,658.01,0.628]
[1746854071921,0.24995303,658.86,658.01,0.628]
[1746854072223,0.24995303,658.85,658.01,0.628]
[1746854072527,0.24995303,658.84,658.01,0.628]
[1746854073024,0.24995303,658.83,658.01,0.628]
[1746854073228,0.24995303,658.82,658.01,0.628]
[1746854073527,0.24995303,658.81,658.01,0.628]
[1746854073828,0.24995303,658.8,658.01,0.628]
[1746854074228,0.24995303,658.79,658.01,0.628]
[1746854074528,0.24995303,658.78,658.01,0.628]
[1746854074724,0.51438871,658.78,658.01,0.628]
[1746854074922,0.24995303,658.77,658.01,0.628]
[1746854075124,0.24995303,658.76,658.01,0.628]
[1746854075429,1.93745811,658.72,658.01,0.628]
[1746854075928,0.24995303,658.71,658.01,0.628]
[1746854076325,0.24995303,658.7,658.01,0.628]
[1746854076629,0.24995303,658.69,658.01,0.628]
[1746854076929,0.24995303,658.68,658.01,0.628]
[1746854077631,0.51441484,658.67,658.01,0.628]
[1746854077927,0.24995303,658.66,658.01,0.628]
[1746854078437,0.24995303,658.65,658.01,0.628]
[1746854078736,0.24995303,658.64,658.01,0.628]
[1746854079232,0.24995303,658.63,658.01,0.628]
[1746854079536,0.26446181,658.67,658.01,0.628]
[1746854079537,0.24995303,658.66,658.01,0.628]
[1746854080633,0.26441659,658.65,658.01,0.628]
[1746854081135,0.24995303,658.64,658.01,0.628]
[1746854082845,0.24995303,658.64,658.02,0.597]
[1746854083643,0.24995303,659.04,658.02,0.597]
[1746854083843,0.26439349,658.63,658.02,0.597]
[1746854084044,0.24995303,659.04,658.02,0.597]
[1746854084241,0.24995303,658.62,658.02,0.597]
[1746854084439,0.24995303,659.04,658.02,0.597]
[1746854084845,0.51434652,659.03,658.02,0.597]
[1746854085047,2.45180463,659.03,658.02,0.597]
[1746854085243,0.24995303,659.02,658.02,0.597]
[1746854085548,0.24995303,659.01,658.02,0.597]
[1746854086043,0.24995303,659.0,658.02,0.597]
[1746854086648,0.2643955,658.99,658.02,0.597]
[1746854087148,0.51434853,658.99,658.02,0.597]
[1746854087447,0.24995303,658.98,658.02,0.597]
[1746854087748,0.24995303,658.97,658.02,0.597]
[1746854088249,0.24995303,658.96,658.02,0.597]
[1746854088545,0.24995303,658.95,658.02,0.597]
[1746854089048,0.24995303,658.94,658.02,0.597]
[1746854089249,0.24995303,658.93,658.02,0.597]
[1746854089548,0.24995303,658.92,658.02,0.597]
[1746854089749,0.51436259,658.92,658.02,0.597]
[1746854090451,0.24995303,658.91,658.02,0.597]
[1746854091050,0.24995303,658.9,658.02,0.597]
[1746854091551,0.24995303,658.89,658.02,0.597]
[1746854091946,0.24995303,658.88,658.03,0.626]
[1746854092451,1.93745811,659.6,658.03,0.626]
[1746854092452,0.24995303,658.87,658.03,0.626]
[1746854092644,0.51433346,658.87,658.03,0.626]
[1746854093051,0.24995303,658.86,658.03,0.626]
[1746854093250,0.24995303,658.85,658.03,0.626]
[1746854093551,0.24995303,658.84,658.03,0.626]
[1746854093851,0.24995303,658.83,658.03,0.626]
[1746854094152,0.24995303,658.82,658.03,0.626]
[1746854094454,0.24995303,658.81,658.03,0.626]
[1746854094853,0.24995303,658.8,658.03,0.626]
[1746854095350,0.24995303,658.79,658.03,0.626]
[1746854095548,0.24995303,658.78,658.03,0.626]
[1746854095953,0.24995303,658.77,658.03,0.626]
[1746854096254,0.24995303,658.76,658.03,0.626]
[1746854096653,0.24995303,658.75,658.03,0.626]
[1746854097153,0.24995303,658.78,658.03,0.626]
[1746854097355,0.24995303,658.74,658.03,0.626]
[1746854097551,0.24995303,658.78,658.03,0.626]
[1746854097954,0.24995303,658.77,658.03,0.626]
[1746854098353,0.24995303,658.76,658.03,0.626]
[1746854098550,0.24995303,658.75,658.03,0.626]
[1746854098953,0.24995303,658.74,658.03,0.626]
[1746854099355,0.24995303,658.73,658.03,0.626]
[1746854099856,0.24995303,658.75,658.03,0.626]
[1746854100156,0.24995303,658.74,658.03,0.626]
[1746854100452,0.24995303,658.75,658.03,0.626]
[1746854100854,0.24995303,658.74,658.03,0.626]
[1746854101153,0.24995303,658.73,658.03,0.626]
[1746854101551,0.51432342,658.73,658.03,0.626]
[1746854101758,0.26437039,658.73,658.03,0.626]
[1746854102057,0.24995303,658.72,658.03,0.626]
[1746854102456,0.24995303,658.72,658.04,0.30393289]
[1746854105060,0.26437039,658.73,658.04,0.30393289]
[1746854105856,0.25049859,658.72,658.04,0.30393289]
[1746854106962,0.25049859,658.72,658.05,0.435]
[1746854107364,0.25049859,658.72,658.06,0.30392365]
[1746854107564,0.26428607,658.71,658.06,0.30392365]
[1746854107964,0.25049859,658.7,658.06,0.30392365]
[1746854110866,0.26428506,658.69,658.06,0.30392365]
[1746854111768,0.25049859,658.68,658.06,0.30392365]
[1746854112567,0.26428506,658.69,658.06,0.30392365]
[1746854112769,0.2504584,658.68,658.06,0.30392365]
[1746854113568,0.2504584,659.41,658.06,0.30392365]
[1746854113768,0.26428506,658.67,658.06,0.30392365]
[1746854114067,0.2504584,659.4,658.06,0.30392365]
[1746854114367,0.2504584,659.39,658.06,0.30392365]
[1746854114768,0.2504584,659.38,658.06,0.30392365]
[1746854114970,0.2504584,659.37,658.06,0.30392365]
[1746854115269,0.2504584,659.36,658.06,0.30392365]
[1746854115665,0.2504584,659.35,658.06,0.30392365]
[1746854116070,0.2504584,659.34,658.06,0.30392365]
[1746854116569,0.2504584,659.33,658.06,0.30392365]
[1746854116769,0.51474346,659.33,658.06,0.30392365]
[1746854116969,0.2504584,659.32,658.06,0.30392365]
[1746854117270,0.2504584,659.31,658.06,0.30392365]
[1746854117570,0.2504584,659.3,658.06,0.30392365]
[1746854118170,0.2504584,659.29,658.06,0.30392365]
[1746854118369,0.2504584,659.28,658.06,0.30392365]
[1746854118770,0.2504584,659.27,658.06,0.30392365]
[1746854119069,0.2504584,659.26,658.06,0.30392365]
[1746854119370,0.2504584,659.25,658.06,0.30392365]
[1746854119666,0.2504584,659.24,658.06,0.30392365]
[1746854120071,0.2504584,659.23,658.06,0.30392365]
[1746854120471,0.2504584,659.22,658.06,0.30392365]
[1746854120871,0.2504584,659.21,658.06,0.30392365]
[1746854121071,0.2504584,659.21,658.06,0.73292365]
[1746854121270,0.2504584,659.2,658.06,0.73292365]